Cogmind - Beta 17 @@@ ROGUE MODE // 2026.07.11 @ 17:59:33 Player: TinyBoulder Result: Destroyed by H-88 Terminator with KE Penetrator Performance ------------- Evolutions (8) 4000 Regions Visited (16) 3200 Robots Destroyed (48) 240 Value Destroyed (2367) 2367 Prototype IDs (38) 760 Alien Tech Used (2) 400 Bonus (2112) 2112 TOTAL SCORE: 13079 Bonus ------- Follower Combat Kills 49 Registered with UFD 300 Met Optimus in HQ 500 MAIN.C Attacked Warlord 500 Met Optimus at Protoforge 1000 Friendly Fire -237 Cogmind --------- Core Integrity 0/1450 Matter 300/300 Energy 97/100 System Corruption 12% Temperature Cool (0) Movement Flying (42) Location -2/Protoforge Parts ------- > --- POWER (2) -------- (None) > --- PROPULSION (7) --- Impulse Thruster Array Impulse Thruster Array > --- UTILITY (12) ----- Experimental Optical Array Experimental Core Analyzer Experimental Core Analyzer Improved Armor Integrity Analyzer Experimental Armor Integrity Analyzer Advanced Thermal Defense Suite > --- WEAPON (2) ------- (None) > --- INVENTORY (5) ---- Light Humpback Thermal Barrier Core Cannon Peak State ------------ > --- POWER ------------ Improved Quantum Reactor Improved Quantum Reactor > --- PROPULSION ------- Myomer Leg Myomer Leg Biometal Leg Experimental Biometal Leg Experimental VSS Leg Experimental VSS Leg Experimental VSS Leg > --- UTILITY ---------- 2N-1CE's Frost Array Light Humpback Experimental Optical Array Advanced Sensor Array Experimental Core Analyzer Experimental Core Analyzer Improved Armor Integrity Analyzer Experimental Armor Integrity Analyzer Centrium Medium Armor Plating Advanced Thermal Defense Suite Advanced System Shield > --- WEAPON ----------- Helical Railgun Concept XC Strikerail > --- INVENTORY -------- Light Quantum Reactor IFF Parser Thermal Barrier Core Cannon UFD Drillbomb UFD Drillbomb [Rating: 218] Favorites ----------- Power Ion Engine Engine Ion Engine Power Core Micro Fission Core Reactor Improved Quantum Reactor Propulsion Light Treads Treads Light Treads Leg Experimental VSS Leg Wheel Wheel Hover Unit Antigrav System Flight Unit Electron Diverter Utility Hacking Suite Device Thermal Barrier Storage Large Storage Unit Processor Advanced Signal Interpreter Hackware Hacking Suite Protection Centrium Heavy Armor Plating Weapon Companion Sword Energy Gun Vortex Shotgun Energy Cannon Core Cannon Ballistic Gun Assault Rifle Launcher Vortex Catalyst Activator Special Weapon Improved Plasma Cutter Slashing Weapon Companion Sword Build | -11 -10 -10 -7 -5 -5 -5 -5 -5 -5 -4 -4 -3 -3 -2 -2 -2 ------- Run | Yrd Mat Sub Scr Fac Was Fac Upp Upp War Pro Fac Res Tes Res Qua Frg Slots Evolved 16 | . . . . 10 . . . . . . 2 2 . 2 . . Power 1 | . . . . 1 . . . . . . . . . . . . Propulsion 5 | . . . . 4 . . . . . . . . . 1 . . Utility 10 | . . . . 5 . . . . . . 2 2 . 1 . . Weapon . | . . . . . . . . . . . . . . . . . Parts Attached 128 | 6 . 1 5 19 1 5 15 2 13 2 9 7 9 2 . 32 Power 15 | 1 . . . 3 1 . 1 1 1 . 1 1 . . . 5 Engine 1 | 1 . . . . . . . . . . . . . . . . Core 6 | . . . . 3 . . 1 1 . . 1 . . . . . Reactor 8 | . . . . . 1 . . . 1 . . 1 . . . 5 Propulsion 39 | 2 . . 1 7 . 2 5 . 4 . 2 3 1 . . 12 Treads 3 | 2 . . 1 . . . . . . . . . . . . . Leg 10 | . . . . . . . . . . . . . . . . 10 Wheel 3 | . . . . 3 . . . . . . . . . . . . Hover 6 | . . . . . . . 4 . 2 . . . . . . . Flight 17 | . . . . 4 . 2 1 . 2 . 2 3 1 . . 2 Utility 57 | 1 . 1 2 9 . 2 7 1 5 2 5 3 7 2 . 10 Device 23 | . . . . 5 . 1 3 1 2 1 4 1 5 . . . Storage 5 | 1 . 1 1 . . . . . . . . . . . . 2 Processor 14 | . . . . 2 . . 4 . 2 . . . 1 . . 5 Hackware 11 | . . . . 2 . 1 . . 1 1 1 2 . 2 . 1 Protection 4 | . . . 1 . . . . . . . . . 1 . . 2 Artifact . | . . . . . . . . . . . . . . . . . Weapon 17 | 2 . . 2 . . 1 2 . 3 . 1 . 1 . . 5 Energy Gun 2 | . . . . . . . . . 1 . 1 . . . . . Energy Cannon 2 | . . . . . . . . . . . . . 1 . . 1 Ballistic Gun 8 | 2 . . . . . . 2 . . . . . . . . 4 Ballistic Cannon . | . . . . . . . . . . . . . . . . . Launcher 1 | . . . . . . . . . 1 . . . . . . . Special Weapon 1 | . . . . . . . . . 1 . . . . . . . Impact Weapon . | . . . . . . . . . . . . . . . . . Slashing Weapon 3 | . . . 2 . . 1 . . . . . . . . . . Piercing Weapon . | . . . . . . . . . . . . . . . . . Special Melee Weapon . | . . . . . . . . . . . . . . . . . Unidentified Prototypes 30 | . . . 1 . . 1 . . 9 . 1 . 7 . . 11 Corrupted Parts 1 | . . . . . . . . . . . . . . . . 1 System Corruption 2 | . . . . . . . . . . . . . . . . 2 Parts Lost 60 | . . . . 7 . 9 4 1 1 . 15 . . . . 23 Power 8 | . . . . 1 . 1 . . . . 2 . . . . 4 Propulsion 23 | . . . . 4 . 6 1 . 1 . 4 . . . . 7 Utility 24 | . . . . 2 . 2 3 . . . 7 . . . . 10 Weapon 5 | . . . . . . . . 1 . . 2 . . . . 2 Highest Loss Streak 10 | . . . . 3 . 7 2 1 1 . 10 . . . . 10 To Critical Strikes 2 | . . . . . . . . . . . . . . . . 2 Average Backups 6 | 2 6 7 12 8 2 2 2 3 2 4 3 3 4 4 4 3 Power 1 | . 1 1 3 . . . . . . . . . . 1 . . Propulsion 1 | 1 4 3 3 1 . . . . . . . . . . . . Utility 2 | . . . 4 5 1 1 . 1 . . . 1 1 1 1 1 Weapon 1 | . 1 2 1 . . . . 1 1 3 2 1 1 2 2 1 Tool/Special . | . . . . . . . . . . . . . . . . . Unused Backups 16 | . . 1 7 4 . 1 . . . . . . 1 . 1 1 Power 5 | . . . 3 . . . . . . . . . . . 1 1 Propulsion 2 | . . 1 1 . . . . . . . . . . . . . Utility 6 | . . . . 4 . 1 . . . . . . 1 . . . Weapon 3 | . . . 3 . . . . . . . . . . . . . Tool/Special . | . . . . . . . . . . . . . . . . . Average Slot Usage (%) 79 | . 85 85 90 76 82 83 51 80 87 82 67 33 63 70 73 80 Engine 5 | . 14 14 14 4 . . . . . . . . . . . . Core 1 | . . . . 5 7 2 2 8 6 5 6 . . . . . Reactor 1 | . . . . . 3 5 . . . . . 1 4 4 4 6 Treads 11 | . 28 28 28 9 . . . . . . . . . . . . Leg 3 | . . . . . . . . . . . . . . . . 20 Hover 3 | . . . . . . . 9 23 23 17 5 . . . . . Flight 4 | . . . . 3 23 27 . . 6 11 16 11 14 17 17 3 Device 8 | . . . . 11 23 18 6 8 13 17 16 12 23 24 21 13 Storage 6 | . 14 14 14 4 . . . . . . . . . . . . Processor 6 | . . . . 2 11 10 18 26 16 11 6 . 2 4 4 11 Hackware 5 | . . . . 9 5 8 5 5 8 11 9 1 9 10 17 8 Protection 3 | . . . 5 1 . . . . . . . . 3 4 4 5 Ballistic Gun 8 | . 28 28 15 . . . 5 5 2 . . . . . . 5 Slashing Weapon 5 | . . . 12 10 5 7 . . 3 5 2 3 4 4 4 . Peak Build Rating 218 | 6 6 8 23 66 64 70 76 75 120 103 130 87 147 148 145 218 Average Rating 68 | 4 6 6 16 47 61 64 48 70 93 100 97 68 122 143 143 171 On Entrance 62 | . 6 6 7 23 59 62 19 75 69 100 103 28 87 135 143 145 Avg Prop Armor Cover (%) 13 | . . . . 19 . 4 5 6 24 23 15 18 . 1 1 2 Naked Turns . | . . . . . . . . . . . . . . . . . Heaviest Build 118 | 13 13 18 39 46 23 24 19 21 48 13 21 25 48 48 48 118 Greatest Support 184 | 40 40 40 40 40 23 24 44 44 70 16 31 46 48 58 58 184 Greatest Overweight (x) 6 | . . . . 3 . 1 3 . 6 . . . . . . 1 Average Overweight (x) . | . . . . 1 . . . . . . . . . . . . Largest Inventory Capacity 25 | 8 8 10 15 15 5 5 5 5 5 5 5 5 5 5 5 25 Average Capacity 9 | 7 8 8 14 13 5 5 5 5 5 5 5 5 5 5 5 8 Most Carried 25 | 6 6 9 15 15 5 5 5 5 5 5 5 4 5 5 5 25 Average Carried 8 | 2 6 7 13 11 5 4 4 5 4 5 4 3 4 4 4 6 Final Capacity 15 | 8 8 10 15 5 5 5 5 5 5 5 5 5 5 5 5 5 Final Carried 14 | 6 6 9 14 5 5 5 5 5 5 5 4 4 5 5 5 5 Class Distribution -------------------- 47% | Mutant 23% | Scavenger-Mutant 9% | Hacker-Sprinter 8% | Hacker-Ninja 4% | Hacker-Mutant Dominant Class ---------------- Mutant | -10/Materials Mutant | -10/Subcaves Mutant | -7/Scraptown Derelict-Mutant | -5/Factory Infiltrator-Sprinter | -5/Waste Hacker-Sprinter | -5/Factory Scavenger-Mutant | -5/Upper Caves Scavenger-Mutant | -5/Upper Caves Hacker-Sprinter | -5/Warlord Hacker-Sprinter | -4/Proximity Caves Hacker-Sprinter | -4/Factory Mutant | -3/Research Hacker-Ninja | -3/Testing Hacker-Ninja | -2/Research Hacker-Ninja | -2/Quarantine Scavenger-Mutant | -2/Protoforge Resources | -11 -10 -10 -7 -5 -5 -5 -5 -5 -5 -4 -4 -3 -3 -2 -2 -2 ----------- Run | Yrd Mat Sub Scr Fac Was Fac Upp Upp War Pro Fac Res Tes Res Qua Frg Matter Collected 2340 | 186 106 4 50 51 . 210 236 35 3 105 58 145 . . 42 1109 Remotely . | . . . . . . . . . . . . . . . . . Salvage Created 2190 | . 108 . . 104 . 96 341 . . . 192 . . . 42 1307 Parts 114 | . 6 . . 7 . 4 14 . . . 11 . . . 3 69 Haulers Intercepted . | . . . . . . . . . . . . . . . . . Recyclers Shooed . | . . . . . . . . . . . . . . . . . Parts Field Recycled . | . . . . . . . . . . . . . . . . . Retrieved Matter . | . . . . . . . . . . . . . . . . . Parts Self-Destructed 41 | . . 5 . . . . 33 3 . . . . . . . . Prevented . | . . . . . . . . . . . . . . . . . Parts Restored . | . . . . . . . . . . . . . . . . . Kills | -11 -10 -10 -7 -5 -5 -5 -5 -5 -5 -4 -4 -3 -3 -2 -2 -2 ------- Run | Yrd Mat Sub Scr Fac Was Fac Upp Upp War Pro Fac Res Tes Res Qua Frg Combat Hostiles Destroyed 41 | . 3 . . 3 . 3 5 . . . 5 . . . . 22 Melee 11 | . . . . 3 . 3 1 . . . 1 . . . . 3 Guns 26 | . 3 . . . . . 4 . . . 2 . . . . 17 Cannons 2 | . . . . . . . . . . . . . . . . 2 AOE 2 | . . . . . . . . . . . 2 . . . . . Classes Destroyed 15 | . 2 . . 3 . . 1 . . . 1 . . . 1 7 Worker 1 | . . . . 1 . . . . . . . . . . . . Builder 1 | . . . . 1 . . . . . . . . . . . . Operator 4 | . 1 . . . . 1 . . . . 1 . . . . 1 Drone 5 | . . . . . . . . . . . . . . . . 5 Watcher 1 | . . . . . . . . . . . . . . . 1 . Swarmer 11 | . . . . 3 . 3 1 . . . 1 . . . . 3 Grunt 8 | . 3 . . . . . 3 . . . 1 . . . . 1 Brawler 2 | . . . . . . . . . . . . . . . . 2 Duelist 1 | . . . . . . . . . . . . . . . . 1 Protector 1 | . . . . . . . . . . . . . . . . 1 Sentry 2 | . . . . . . . 1 . . . . . . . . 1 Specialist 2 | . . . . . . . . . . . . . . . . 2 Programmer 6 | . . . . . . . . . . . 3 . . . . 3 Striker 1 | . . . . . . . . . . . . . . . . 1 Executioner 2 | . . . . . . . . . . . . . . . . 2 Best Kill Streak 4 | . 2 . . 3 . 3 3 . . . 4 . . . 1 4 Combat Bots Only 4 | . 2 . . 3 . 3 3 . . . 4 . . . . 3 Max Kills in Single Turn 2 | . 1 . . 1 . 1 1 . . . 2 . . . 1 2 Gunslinging 1 | . . . . . . . . . . . . . . . . 1 Exploded 1 | . . . . . . . . . . . 1 . . . . . Melee 1 | . . . . 1 . 1 1 . . . 1 . . . . 1 Uniques/NPCs Destroyed . | . . . . . . . . . . . . . . . . . Combat | -11 -10 -10 -7 -5 -5 -5 -5 -5 -5 -4 -4 -3 -3 -2 -2 -2 -------- Run | Yrd Mat Sub Scr Fac Was Fac Upp Upp War Pro Fac Res Tes Res Qua Frg Hostile Shots Fired 712 | . 6 . . 65 . 50 49 6 3 . 142 14 20 4 6 347 Missed 286 | . 1 . . 22 . 22 13 2 1 . 69 6 12 1 5 132 Hits 426 | . 5 . . 43 . 28 36 4 2 . 73 8 8 3 1 215 Melee 29 | . . . . . . . . . . . . . . . . 29 Projectile 397 | . 5 . . 43 . 28 36 4 2 . 73 8 8 3 1 186 Critical Strikes 26 | . . . . . . 1 1 . . . 8 . . . . 16 Part Disruptions 1 | . . . . . . . . . . . 1 . . . . . Damage Taken 10859 | . 56 . . 779 . 530 658 76 71 . 1626 170 160 84 25 6624 Core 2539 | . 10 . . 45 . 211 286 20 . . 544 43 31 . . 1349 Absorbed by Shields . | . . . . . . . . . . . . . . . . . Ignored by Resistances 314 | . . . . . . . . . . . 28 . . . . 286 Regen/Repaired (Parts) 50 | . . . . . . . . . 50 . . . . . . . Core Remaining (%) 77 | 100 . . 96 . . . . . . 43 52 . 94 . . . Volleys Fired 93 | . 9 . . . . . 8 . . . 9 . . . . 67 Largest 2 | . 2 . . . . . 2 . . . 2 . . . . 2 Hottest 300 | . 40 . . . . . 68 . . . 120 . . . . 300 Shots Fired 157 | . 18 . . . . . 16 2 . . 10 . . . . 111 Gun 150 | . 18 . . . . . 16 2 . . 9 . . . . 105 Cannon 6 | . . . . . . . . . . . . . . . . 6 Launcher 1 | . . . . . . . . . . . 1 . . . . . Special . | . . . . . . . . . . . . . . . . . Kinetic 141 | . 18 . . . . . 16 2 . . . . . . . 105 Thermal 6 | . . . . . . . . . . . . . . . . 6 Explosive . | . . . . . . . . . . . . . . . . . Electromagnetic . | . . . . . . . . . . . . . . . . . Entropic 10 | . . . . . . . . . . . 10 . . . . . Robot Hit Streak 18 | . 8 . . . . . 3 . . . 4 . . . . 18 Robot Miss Streak 5 | . 1 . . . . . 2 . . . 5 . . . . 4 Penetration Max 2 | . . . . . . . . . . . . . . . . 2 Secondary Targets 2 | . . . . . . . . . . . . . . . . 2 Max Gunslinging Chain 1 | . . . . . . . . . . . . . . . . 1 Shots Hit Robots 154 | . 14 . . 7 . 9 13 . . . 12 . . 1 1 97 Core Hits 80 | . 9 . . 4 . 4 6 . . . 8 . . . 1 48 Critical Kills 9 | . . . . . . . 4 . . . . . . . . 5 Critical Parts Destroyed 8 | . . . . . . . 2 . . . 2 . . . . 4 Critical Strikes 18 | . . . . . . . 7 . . . 2 . . . . 9 Destroy 16 | . . . . . . . 7 . . . . . . . . 9 Detonate 2 | . . . . . . . . . . . 2 . . . . . Melee Attacks 88 | . . . . 18 . 16 6 . . . 9 3 12 7 5 12 Impact . | . . . . . . . . . . . . . . . . . Slashing 88 | . . . . 18 . 16 6 . . . 9 3 12 7 5 12 Piercing . | . . . . . . . . . . . . . . . . . Sneak Attacks 5 | . . . . 2 . . . . . . 1 . . . . 2 Combat Hostiles 1 | . . . . . . . . . . . . . . . . 1 Follow-up Attacks 3 | . . . . 1 . 2 . . . . . . . . . . Damage Inflicted 6784 | . 160 . . 381 . 421 209 . . . 1309 . . 36 57 4211 Guns 4038 | . 160 . . . . . 71 . . . 362 . . . . 3445 Cannons 475 | . . . . . . . . . . . . . . . . 475 Explosions 789 | . . . . . . . . . . . 789 . . . . . Melee 1479 | . . . . 381 . 421 138 . . . 155 . . 36 57 291 Ramming 3 | . . . . . . . . . . . 3 . . . . . Kinetic 3676 | . 160 . . . . . 71 . . . . . . . . 3445 Thermal 629 | . . . . . . . . . . . 154 . . . . 475 Explosive . | . . . . . . . . . . . . . . . . . Electromagnetic . | . . . . . . . . . . . . . . . . . Impact . | . . . . . . . . . . . . . . . . . Slashing 1479 | . . . . 381 . 421 138 . . . 155 . . 36 57 291 Piercing . | . . . . . . . . . . . . . . . . . Entropic 997 | . . . . . . . . . . . 997 . . . . . Highest Corruption 12 | . . . . . 8 8 8 8 8 . 7 . . . . 12 Average Corruption 8 | . . . . . 8 8 8 8 8 . 5 . . . . 9 Corruption Purged . | . . . . . . . . . . . . . . . . . Corruption Blocked . | . . . . . . . . . . . . . . . . . Effects 72 | . . . . . . 7 14 6 1 . 4 . . . . 40 Message Errors 17 | . . . . . . 1 6 1 . . 2 . . . . 7 Matter Fused 22 | . . . . . . 4 2 1 . . . . . . . 15 Heat Flow Errors 7 | . . . . . . 1 1 . . . 1 . . . . 4 Energy Discharges 8 | . . . . . . . 3 1 1 . . . . . . 3 Parts Rejected 2 | . . . . . . . . . . . . . . . . 2 Data Loss (minor) 7 | . . . . . . . 2 1 . . 1 . . . . 3 Data Loss (major) 1 | . . . . . . . . . . . . . . . . 1 Misfires 2 | . . . . . . . . 2 . . . . . . . . Alerts 1 | . . . . . . 1 . . . . . . . . . . Misdirections 1 | . . . . . . . . . . . . . . . . 1 Weapon Failures 4 | . . . . . . . . . . . . . . . . 4 Overload Shots . | . . . . . . . . . . . . . . . . . Overflow Damage 333 | . . . . 82 . 100 20 . . . 131 . . . . . Projectiles . | . . . . . . . . . . . . . . . . . Explosions 131 | . . . . . . . . . . . 131 . . . . . Melee 202 | . . . . 82 . 100 20 . . . . . . . . . Knockbacks . | . . . . . . . . . . . . . . . . . Impact . | . . . . . . . . . . . . . . . . . Kinetic . | . . . . . . . . . . . . . . . . . Secondary . | . . . . . . . . . . . . . . . . . Self-Inflicted Damage 77 | . . . . . . . . . . . 77 . . . . . Shots 1 | . . . . . . . . . . . 1 . . . . . Rammed 1 | . . . . . . . . . . . 1 . . . . . Targets Rammed 1 | . . . . . . . . . . . 1 . . . . . Kicked . | . . . . . . . . . . . . . . . . . Crushed . | . . . . . . . . . . . . . . . . . Highest Temperature 337 | . 15 . . . . 215 250 3 . . 281 32 . . . 337 Average Temperature 117 | . 9 . . . . 116 126 3 . . 129 22 . . . 130 Received Heat Transfer 832 | . 33 . . 138 . 45 126 . . . 160 60 . 9 . 261 Siege Activations . | . . . . . . . . . . . . . . . . . Martial Activations . | . . . . . . . . . . . . . . . . . Shielding Activations . | . . . . . . . . . . . . . . . . . Robots Disrupted . | . . . . . . . . . . . . . . . . . Combat Hostiles . | . . . . . . . . . . . . . . . . . Robots Corrupted . | . . . . . . . . . . . . . . . . . Combat Hostiles . | . . . . . . . . . . . . . . . . . Parts Fried . | . . . . . . . . . . . . . . . . . Impact Corruptions . | . . . . . . . . . . . . . . . . . Robots Melted . | . . . . . . . . . . . . . . . . . Combat Hostiles . | . . . . . . . . . . . . . . . . . Parts Melted . | . . . . . . . . . . . . . . . . . Heat Transferred 100 | . . . . . . . . . . . 100 . . . . . Parts Sabotaged . | . . . . . . . . . . . . . . . . . Parts Stolen . | . . . . . . . . . . . . . . . . . Parts Stripped . | . . . . . . . . . . . . . . . . . Power Chain Reactions . | . . . . . . . . . . . . . . . . . Alert | -11 -10 -10 -7 -5 -5 -5 -5 -5 -5 -4 -4 -3 -3 -2 -2 -2 ------- Run | Yrd Mat Sub Scr Fac Was Fac Upp Upp War Pro Fac Res Tes Res Qua Frg Maximum Alert Level 1 | . . . . . . . . . . . . . . . . 1 Low Security (%) 89 | 100 100 . . 100 100 100 . . . . 100 100 100 100 100 73 Level 1 10 | . . . . . . . . . . . . . . . . 26 Level 2 . | . . . . . . . . . . . . . . . . . Level 3 . | . . . . . . . . . . . . . . . . . Level 4 . | . . . . . . . . . . . . . . . . . Level 5 . | . . . . . . . . . . . . . . . . . High Security . | . . . . . . . . . . . . . . . . . Max Security . | . . . . . . . . . . . . . . . . . Peak Influence 265 | . 40 . . 165 54 87 . . . . 134 138 125 64 53 265 Initial 77 | . . . . . 54 30 . . . . 18 62 77 64 29 18 Average 84 | . 7 . . 52 51 21 . . . . 42 56 75 56 34 157 Influence Increases 2679 | . 80 . . 407 . 241 200 38 15 60 369 136 148 18 54 913 Destroy 0b10 Robot/C 720 | . 60 . . 60 . 60 100 20 . . 100 . . . . 320 Destroy 0b10 Robot/NC 65 | . 5 . . 10 . 5 . . . . 5 . . . 5 35 Destroy Leader 132 | . 10 . . 10 . 10 10 . . . 30 . . . 2 60 Allied During Kill 3 | . . . . . . . . 3 . . . . . . . . Trap Triggered on 0b10 10 | . . . . . . . . . . . . . . . . 10 Successful Hack 162 | . 5 . . 60 . 23 . . . . 8 12 18 . 14 22 Disable Machine 135 | . . . . . . . . . . . . . 60 . 30 45 Destroy Structure 177 | . . . . 12 . 8 . . . . 46 4 10 18 3 76 Partial Spotted 60 | . . . . . . 30 . . . . 30 . . . . . Lose Combat Pursuer 1215 | . . . . 255 . 105 90 15 15 60 150 120 60 . . 345 Influence Decreases 2424 | . 70 10 . 250 113 193 292 38 10 35 280 117 171 81 73 691 Entered New Map 382 | . . 6 . . 103 14 35 . . 5 12 57 61 51 23 15 Time Decay 1425 | . 70 4 . 180 10 86 217 15 10 30 107 60 110 30 50 446 Lost Part 541 | . . . . 70 . 60 40 . . . 141 . . . . 230 Lost Ally 44 | . . . . . . 1 . 23 . . 20 . . . . . Purge Threat 32 | . . . . . . 32 . . . . . . . . . . Squads Dispatched 20 | . 1 . . 1 . 8 . . . . 3 1 1 1 . 4 Investigation 8 | . . . . . . 3 . . . . 2 . . 1 . 2 Extermination 3 | . . . . 1 . 1 . . . . 1 . . . . . Reinforcement 9 | . 1 . . . . 4 . . . . . 1 1 . . 2 Assault . | . . . . . . . . . . . . . . . . . Garrison . | . . . . . . . . . . . . . . . . . Intercept . | . . . . . . . . . . . . . . . . . Searches Triggered . | . . . . . . . . . . . . . . . . . Construction Impeded . | . . . . . . . . . . . . . . . . . Haulers Reinforced . | . . . . . . . . . . . . . . . . . Active Scanning Responses . | . . . . . . . . . . . . . . . . . Cargo Convoy Interrupts . | . . . . . . . . . . . . . . . . . Stealth | -11 -10 -10 -7 -5 -5 -5 -5 -5 -5 -4 -4 -3 -3 -2 -2 -2 --------- Run | Yrd Mat Sub Scr Fac Was Fac Upp Upp War Pro Fac Res Tes Res Qua Frg Distress Signals 17 | . . . . 2 . 2 . . . . 6 . . . . 7 Communications Jammed 33 | . . . . 1 . . . . . . 17 . . . . 15 Distress Signals 33 | . . . . 1 . . . . . . 17 . . . . 15 Times Spotted 277 | . 6 . . 24 3 30 16 3 1 5 34 9 5 2 4 135 Peak Tracking Total 30 | . 2 . . 9 3 17 7 3 1 4 16 7 4 2 3 30 Tactical Retreats 40 | . . . . 8 . 4 2 2 1 1 5 2 3 . . 12 ECM-based Alert Blocks 7 | . . . . 1 . . . 1 . . 5 . . . . . Traps | -11 -10 -10 -7 -5 -5 -5 -5 -5 -5 -4 -4 -3 -3 -2 -2 -2 ------- Run | Yrd Mat Sub Scr Fac Was Fac Upp Upp War Pro Fac Res Tes Res Qua Frg Traps Triggered 2 | . . . . 1 . 1 . . . . . . . . . . Indirectly . | . . . . . . . . . . . . . . . . . Trap Hack Attempts . | . . . . . . . . . . . . . . . . . Triggered . | . . . . . . . . . . . . . . . . . Disarmed . | . . . . . . . . . . . . . . . . . Reprogrammed 4 | . . . . . . . . . . . . . . . . 4 Reused 1 | . . . . . . . . . . . . . . . . 1 Traps Extracted . | . . . . . . . . . . . . . . . . . Installed . | . . . . . . . . . . . . . . . . . Triggered 1 | . . . . . . . . . . . . . . . . 1 Most Traps Carried 1 | . . . 1 1 1 1 1 1 1 . . . . . . . Machines | -11 -10 -10 -7 -5 -5 -5 -5 -5 -5 -4 -4 -3 -3 -2 -2 -2 ---------- Run | Yrd Mat Sub Scr Fac Was Fac Upp Upp War Pro Fac Res Tes Res Qua Frg Machines Disabled 10 | . . . . . . . . . 1 . . . 4 . 2 3 Max in Single Turn 1 | . . . . . . . . . 1 . . . 1 . 1 1 Garrison Access 1 | . . . . . . . . . . . . . . . 1 . Machines Repaired . | . . . . . . . . . . . . . . . . . Machines Dismantled 1 | . . . . . . . . . 1 . . . . . . . Machines Sabotaged . | . . . . . . . . . . . . . . . . . Overloaded Fab Kills . | . . . . . . . . . . . . . . . . . Hacking | -11 -10 -10 -7 -5 -5 -5 -5 -5 -5 -4 -4 -3 -3 -2 -2 -2 --------- Run | Yrd Mat Sub Scr Fac Was Fac Upp Upp War Pro Fac Res Tes Res Qua Frg Machines Accessed 52 | . 3 . 7 6 . 8 1 1 2 . 5 4 4 1 3 7 Terminals 23 | . 3 . . 4 . 3 . . . . 4 1 2 . 1 5 Fabricators 1 | . . . . . . 1 . . . . . . . . . . Repair Stations 1 | . . . . . . . . . . . . 1 . . . . Recycling Units 7 | . . . . . . 3 . . . . 1 1 . 1 . 1 Scanalyzers 6 | . . . . 2 . . . . . . . 1 1 . 1 1 Garrison Access 3 | . . . . . . 1 . . . . . . 1 . 1 . Total Hacks 149 | . 8 . 37 17 . 20 1 1 2 . 13 7 8 1 7 27 Successful 94 | . 4 . 37 8 . 10 1 1 2 . 3 1 4 1 5 17 Failed 54 | . 4 . . 9 . 10 . . . . 10 6 3 . 2 10 Catastrophic 7 | . . . . . . 1 . . . . 1 2 1 . 1 1 Database Lockouts 1 | . . . . . . . . . . . . . 1 . . . Manual 49 | . 2 . . 8 . 11 . . . . 6 1 . 1 3 17 Terminals 76 | . 8 . . 13 . 13 . . . . 10 2 4 . 4 22 Fabricators 1 | . . . . . . 1 . . . . . . . . . . Repair Stations 2 | . . . . . . . . . . . . 2 . . . . Recycling Units 13 | . . . . . . 5 . . . . 3 1 . 1 . 3 Scanalyzers 12 | . . . . 4 . . . . . . . 2 2 . 2 2 Garrison Access 4 | . . . . . . 1 . . . . . . 2 . 1 . Terminal Hacks 65 | . 3 . 37 1 . 6 1 1 2 . 2 . 3 . 2 7 Record 30 | . . . 30 . . . . . . . . . . . . . Robot Analysis 5 | . . . 5 . . . . . . . . . . . . . Prototype ID Bank 2 | . 2 . . . . . . . . . . . . . . . Open Door 5 | . . . 1 . . . 1 1 2 . . . . . . . Open DSF 2 | . . . . . . 1 . . . . 1 . . . . . Level Access Points 1 | . . . . . . . . . . . 1 . . . . . Branch Access Points 1 | . . . . . . 1 . . . . . . . . . . Emergency Access Points 1 | . . . . . . . . . . . . . 1 . . . Recycling Unit Index 2 | . . . . . . 1 . . . . . . . . . 1 Alert Level 2 | . . . . . . 1 . . . . . . 1 . . . Unreport Threat 1 | . . . . . . 1 . . . . . . . . . . Locate Traps 4 | . 1 . . 1 . . . . . . . . . . 1 1 Reprogram Traps 1 | . . . . . . . . . . . . . . . . 1 Zone Layout 7 | . . . . . . 1 . . . . . . 1 . 1 4 Proto ID Catalog 1 | . . . 1 . . . . . . . . . . . . . Fabricator Hacks . | . . . . . . . . . . . . . . . . . Repair Station Hacks . | . . . . . . . . . . . . . . . . . Recycling Unit Hacks 1 | . . . . . . . . . . . . . . . . 1 Report Inventory 1 | . . . . . . . . . . . . . . . . 1 Scanalyzer 7 | . . . . 3 . . . . . . . 1 1 . 1 1 Insert Component 1 | . . . . 1 . . . . . . . . . . . . Retrieve Study 6 | . . . . 2 . . . . . . . 1 1 . 1 1 Garrison Access Hacks 1 | . . . . . . . . . . . . . . . 1 . Seal Access 1 | . . . . . . . . . . . . . . . 1 . Unauthorized Hacks 20 | . 1 . . 4 . 4 . . . . 1 . . 1 1 8 Terminals 14 | . 1 . . 4 . 1 . . . . . . . . 1 7 Track 2 | . . . . . . . . . . . . . . . . 2 Assimilate 1 | . . . . . . 1 . . . . . . . . . . Botnet 5 | . . . . 2 . . . . . . . . . . 1 2 Disrupt 3 | . . . . 1 . . . . . . . . . . . 2 Operators 3 | . 1 . . 1 . . . . . . . . . . . 1 Fabricators 1 | . . . . . . 1 . . . . . . . . . . Fabnet 1 | . . . . . . 1 . . . . . . . . . . Repair Stations . | . . . . . . . . . . . . . . . . . Recycling Units 5 | . . . . . . 2 . . . . 1 . . 1 . 1 Fedlink 5 | . . . . . . 2 . . . . 1 . . 1 . 1 Scanalyzers . | . . . . . . . . . . . . . . . . . Garrison Access . | . . . . . . . . . . . . . . . . . Data Cores Recovered 2 | . . . . . . . . . . . 1 . . . . 1 Used 1 | . . . . . . . . . . . 1 . . . . . Hacking Detections 31 | . 3 . . 6 . 5 . . . . 5 4 3 . 2 3 Full Trace Events 3 | . . . . . . 1 . . . . 1 . . . . 1 Feedback Events . | . . . . . . . . . . . . . . . . . Feedback Blocked . | . . . . . . . . . . . . . . . . . Robot Schematics Acquired . | . . . . . . . . . . . . . . . . . Robots Built . | . . . . . . . . . . . . . . . . . Authchips . | . . . . . . . . . . . . . . . . . Time . | . . . . . . . . . . . . . . . . . Total Robot Build Rating . | . . . . . . . . . . . . . . . . . Part Schematics Acquired . | . . . . . . . . . . . . . . . . . Parts Built . | . . . . . . . . . . . . . . . . . Authchips . | . . . . . . . . . . . . . . . . . Time . | . . . . . . . . . . . . . . . . . Total Part Build Rating . | . . . . . . . . . . . . . . . . . Part Studies Acquired 6 | . . . . 2 . . . . . . . 1 1 . 1 1 Parts Repaired . | . . . . . . . . . . . . . . . . . Time . | . . . . . . . . . . . . . . . . . Parts Recycled . | . . . . . . . . . . . . . . . . . Recycled Matter . | . . . . . . . . . . . . . . . . . Retrieved Matter . | . . . . . . . . . . . . . . . . . Retrieved Components . | . . . . . . . . . . . . . . . . . Parts Scanalyzed . | . . . . . . . . . . . . . . . . . Part Schematics Acquired . | . . . . . . . . . . . . . . . . . Parts Damaged . | . . . . . . . . . . . . . . . . . Bothacking | -11 -10 -10 -7 -5 -5 -5 -5 -5 -5 -4 -4 -3 -3 -2 -2 -2 ------------ Run | Yrd Mat Sub Scr Fac Was Fac Upp Upp War Pro Fac Res Tes Res Qua Frg Used RIF Installer . | . . . . . . . . . . . . . . . . . Robots Hacked 1 | . . . . . . . . . . . 1 . . . . . Non-combat . | . . . . . . . . . . . . . . . . . Combat 1 | . . . . . . . . . . . 1 . . . . . Robot Hacks Applied . | . . . . . . . . . . . . . . . . . Relay Couplers Released . | . . . . . . . . . . . . . . . . . Fabnet Peak Effective % 3 | . . . . . . . . . . 3 3 1 1 . . . Autooverrided 1 | . . . . . . . . . . . 1 . . . . . Robots Rewired 2 | . . . . . . . 2 . . . . . . . . . Allies Hacked 1 | . . . . . . . . . . . 1 . . . . . Hacks Repelled . | . . . . . . . . . . . . . . . . . Allies | -11 -10 -10 -7 -5 -5 -5 -5 -5 -5 -4 -4 -3 -3 -2 -2 -2 -------- Run | Yrd Mat Sub Scr Fac Was Fac Upp Upp War Pro Fac Res Tes Res Qua Frg Total Allies 4 | . . . . . 1 . 2 . . . 1 . . . . . Largest Group 2 | . . . . . 1 . 2 2 . . 1 . . . . . Highest-Rated Group 59 | . . . . . 31 . 59 59 . . 49 . . . . . Highest-Rated Ally 49 | . . . . . 31 . 30 30 . . 49 . . . . . Initial UFD Resources 80 | . . . . 38 38 38 52 52 52 55 55 68 68 70 80 80 Total Orders 1 | . . . . . . 1 . . . . . . . . . . EXPLORE 1 | . . . . . . 1 . . . . . . . . . . Ally Attacks 19 | . . . . . 6 . . 11 . . 2 . . . . . Total Damage 396 | . . . . . 85 . . 223 . . 88 . . . . . Kills 1 | . . . . . . . . 1 . . . . . . . . Allies Corrupted 2 | . . . . . . . . 1 . . 1 . . . . . Allies Melted 1 | . . . . . . . 1 . . . . . . . . . Intel | -11 -10 -10 -7 -5 -5 -5 -5 -5 -5 -4 -4 -3 -3 -2 -2 -2 ------- Run | Yrd Mat Sub Scr Fac Was Fac Upp Upp War Pro Fac Res Tes Res Qua Frg Active Infowar (turns) 2780 | . . . . 414 25 219 168 80 96 33 167 104 221 73 117 1063 Optics 398 | . . . . . . . . . . . . . . . . 398 Sensors 1201 | . . . . . . . . . . . 94 . 131 73 117 786 IFF 624 | . . . . . . . . . . . . 104 94 34 117 275 Terrain 786 | . . . . 374 25 219 168 . . . . . . . . . Cloaking 226 | . . . . 8 25 193 . . . . . . . . . . Jamming 1326 | . . . . 414 25 89 1 . . 33 167 40 221 61 91 184 ECM 317 | . . . . 7 . 5 . 80 96 . 129 . . . . . Robot Analysis Total 5 | . . . 5 . . . . . . . . . . . . . Derelict Logs Recovered 6 | . . . 3 . . . 1 1 . 1 . . . . . . Drone Launches 3 | . . . . . . 3 . . . . . . . . . . Drone Recoveries . | . . . . . . . . . . . . . . . . . Exploration | -11 -10 -10 -7 -5 -5 -5 -5 -5 -5 -4 -4 -3 -3 -2 -2 -2 ------------- Run | Yrd Mat Sub Scr Fac Was Fac Upp Upp War Pro Fac Res Tes Res Qua Frg Turns Passed 6204 | 93 283 222 1964 421 25 219 517 145 257 150 254 127 221 73 117 1116 Spaces Moved 7347 | 53 133 120 1176 384 76 562 764 288 476 456 607 294 448 141 292 1077 Core 394 | 5 . . . . . 9 375 . 5 . . . . . . . Treads 1492 | 48 133 120 1176 15 . . . . . . . . . . . . Legs 619 | . . . . . . . . . . . . . . . . 619 Wheels 244 | . . . . 244 . . . . . . . . . . . . Hover 757 | . . . . . . . 325 288 144 . . . . . . . Flight 3841 | . . . . 125 76 553 64 . 327 456 607 294 448 141 292 458 Fastest Speed 28 | 50 160 160 160 28 28 28 35 48 32 32 30 34 35 29 29 29 Average Speed 70 | 149 160 160 164 90 28 29 50 48 38 32 31 34 35 34 33 69 Slowest Speed 350 | 160 160 160 165 165 28 114 200 52 350 32 35 35 35 35 35 170 Overloaded Moves 129 | . . . . . . . . . . . . . . 14 31 84 Propulsion Burnouts . | . . . . . . . . . . . . . . . . . Robots Hopped 81 | . . . . . 2 6 . . 4 . 15 1 22 . 1 30 Potential Cave-ins 13 | . . . . . . . . . . . . . . . . 13 Cave-ins Triggered 1 | . . . . . . . . . . . . . . . . 1 Exploration Rate (%) 38 | 4 18 11 84 14 75 22 67 56 65 63 19 10 59 5 42 38 Regions Visited 16 Branch Regions 9 Pre-discovered Areas 1 | . . . . . . 1 . . . . . . . . . . Known Exits Taken 9 | . . . . . . 1 1 1 1 1 1 . 1 1 1 . Unknown Exits Taken 5 | 1 1 1 1 . . . . . . . . 1 . . . . Scrap Searched 12 | . . . 5 . . . 2 2 . 3 . . . . . . Spaces Dug 35 | . . . . 6 . 4 1 . . . 3 3 6 6 1 5 Terrain Destroyed 93 | . . . . 6 . 4 1 . . . 22 3 6 6 1 44 Melee 35 | . . . . 6 . 4 1 . . . 3 3 6 6 1 5 Projectile 46 | . . . . . . . . . . . 7 . . . . 39 AOE 12 | . . . . . . . . . . . 12 . . . . . Terrain Rammed . | . . . . . . . . . . . . . . . . . Walls Destroyed . | . . . . . . . . . . . . . . . . . Machines Disabled . | . . . . . . . . . . . . . . . . . Actions | -11 -10 -10 -7 -5 -5 -5 -5 -5 -5 -4 -4 -3 -3 -2 -2 -2 --------- Run | Yrd Mat Sub Scr Fac Was Fac Upp Upp War Pro Fac Res Tes Res Qua Frg Total 8005 | 64 187 151 1207 435 77 588 862 290 538 459 631 309 471 153 304 1279 Wait 214 | . 46 25 2 1 . 5 54 . 14 . 4 4 11 2 4 42 Move 7187 | 52 132 119 1175 384 72 549 763 287 469 455 577 291 406 140 289 1027 Hop 64 | . . . . . 1 6 . . 2 . 15 1 19 . 1 19 Pick Up 45 | 6 . 4 14 6 . . 1 . 3 . . 1 2 . 2 6 Fast Attach 120 | 6 . 1 2 10 1 6 15 2 14 2 8 7 10 2 . 34 Attach 28 | . . . 1 9 . . 1 . 4 . 2 1 1 1 . 8 Detach 22 | . . . . . . 1 1 . 4 . 2 . 4 1 . 9 Swap 8 | . . . 2 . 1 . . . 1 . 1 . . . . 3 Drop 92 | . . 2 11 11 2 7 2 1 19 2 4 1 6 . 3 21 Fire 93 | . 9 . . . . . 8 . . . 9 . . . . 67 Melee 82 | . . . . 14 . 14 6 . . . 9 3 12 7 5 12 Ram . | . . . . . . . . . . . . . . . . . Kick . | . . . . . . . . . . . . . . . . . Crush . | . . . . . . . . . . . . . . . . . Escape Stasis 1 | . . . . . . . . . . . . . . . . 1 Rewire 10 | . . . . . . . 10 . . . . . . . . . Trap . | . . . . . . . . . . . . . . . . . Miscellaneous 39 | . . . . . . . 1 . 8 . . . . . . 30 Route ------- -11/Scrapyard -10/Materials (discovered 2 exits: [*Min] / [*Sub]) -10/Subcaves -7/Scraptown (discovered 2 exits: *Fac x2) -5/Factory (discovered 2 exits: Fac / *Upp) -5/Waste -5/Factory (discovered 2 exits: *Upp x2) -5/Upper Caves -5/Upper Caves -5/Warlord -4/Proximity Caves -4/Factory (discovered 4 exits: *Res x4) -3/Research -3/Testing -2/Research -2/Quarantine (discovered 2 exits: *Sec / *Frg) -2/Protoforge History --------- Turn | Location | Event 64 | -11/Scrapyard | Discovered new exit (range 16) 94 | -11/Scrapyard | Entered Materials 95 | -10/Materials | Met a group of wandering Federalists 178 | -10/Materials | Discovered new exit (range 13) 304 | -10/Materials | Build established: Mutant 374 | -10/Materials | Discovered new exit (range 3) 377 | -10/Materials | Entered Subcaves 378 | -10/Subcaves | Continued accompanying wandering Federalists (4) 594 | -10/Subcaves | Wandering Federalist uncovered a shortcut to Scraptown 599 | -10/Subcaves | Entered Scraptown 872 | -7/Scraptown | Visited Comm Corps 960 | -7/Scraptown | Visited Shadow of the Wyrm 985 | -7/Scraptown | Visited Symbiants 1033 | -7/Scraptown | Visited Cyclists 1089 | -7/Scraptown | Scanned Subdweller tech in exchange for log data 1092 | -7/Scraptown | Learned location of 1 exit from Factory 1094 | -7/Scraptown | Learned location of 2 exits from Proximity Caves 1095 | -7/Scraptown | Learned 12 Factory zone layouts 1186 | -7/Scraptown | Discovered new exit (range 9) 1607 | -7/Scraptown | Visited UFD Registry 1607 | -7/Scraptown | Registered with UFD as "Gravbomber" 1638 | -7/Scraptown | Visited Sword Containment 1655 | -7/Scraptown | Found Prototype Slashing Weapon 1656 | -7/Scraptown | Identified Companion Sword 1695 | -7/Scraptown | Visited Scrapoid Research Area 1738 | -7/Scraptown | Visited Botcube Research 1745 | -7/Scraptown | Found Botcube 1945 | -7/Scraptown | Visited Science Guys 2009 | -7/Scraptown | Visited Derelict Rescue Squad 2020 | -7/Scraptown | Found DRS Beacon 2092 | -7/Scraptown | Visited Modified Component R&D 2170 | -7/Scraptown | Visited Analyses Database 2211 | -7/Scraptown | Visited Cartography Club 2445 | -7/Scraptown | Met Optimus 2445 | -7/Scraptown | Accepted into 0bPrime 2554 | -7/Scraptown | Discovered new exit (range 5) 2563 | -7/Scraptown | Entered Factory 2563 | -5/Factory | Evolved 10 slots: Power x1, Propulsion x4, Utility x5 2564 | -5/Factory | Identified exit to Factory 2565 | -5/Factory | Identified exit to Upper Caves 2766 | -5/Factory | Lost 3 parts (2n1u) 2984 | -5/Factory | Sucked down chute 2984 | -5/Factory | Entered Waste 2985 | -5/Waste | Met a frightened Derelict 2994 | -5/Waste | Spotted C-40 Crusher 2998 | -5/Waste | Spotted C-40 Crusher 2999 | -5/Waste | EMP discharged 3001 | -5/Waste | Spotted C-40 Crusher 3003 | -5/Waste | Spotted C-40 Crusher 3006 | -5/Waste | Discovered new exit (range 9) 3009 | -5/Waste | Identified exit to Factory 3009 | -5/Waste | Entered Factory 3029 | -5/Factory | Identified exit to DSF 3130 | -5/Factory | Lost 3 allies 3164 | -5/Factory | Loaded intel: 8 recycling unit locations 3171 | -5/Factory | Learned location of Protoforge (-2) 3228 | -5/Factory | Entered Upper Caves 3254 | -5/Upper Caves | Lost 7 parts (6n1u) 3401 | -5/Upper Caves | Attracted the attention of an 0b10 outpost 3403 | -5/Upper Caves | Activated DRS Beacon 3434 | -5/Upper Caves | Core integrity fell below 50% 3523 | -5/Upper Caves | Lost 3 allies 3577 | -5/Upper Caves | Attracted the attention of an 0b10 checkpoint 3662 | -5/Upper Caves | Learned Factory security intel 3724 | -5/Upper Caves | Discovered new exit (range 8) 3728 | -5/Upper Caves | Identified exit to Upper Caves 3745 | -5/Upper Caves | Entered another Upper Caves area 3745 | -5/Upper Caves | Accompanied by 2 allies 3747 | -5/Upper Caves | Ambushed by research squad 3781 | -5/Upper Caves | Build established: Scavenger-Mutant 3793 | -5/Upper Caves | Learned Factory garrison access intel 3875 | -5/Upper Caves | Discovered new exit (range 7) 3879 | -5/Upper Caves | Identified exit to Warlord 3890 | -5/Upper Caves | Entered Warlord 3910 | -5/Warlord | System corruption cleaned by Quarantine Array 3975 | -5/Warlord | Found Prototype Reactor 3975 | -5/Warlord | Identified Vortex Chain Reactor 3977 | -5/Warlord | Found Prototype Processor 3977 | -5/Warlord | Identified Exp. Targeting Computer 3981 | -5/Warlord | Found Prototype Hackware 3981 | -5/Warlord | Identified Ghost Barrier 3983 | -5/Warlord | Found Prototype Processor 3985 | -5/Warlord | Found Prototype Device 3985 | -5/Warlord | Identified Thermal Barrier 4022 | -5/Warlord | Identified Exp. Target Analyzer 4048 | -5/Warlord | Visited the Vortex Lab 4050 | -5/Warlord | Found Prototype Launcher 4051 | -5/Warlord | Warlord's base attacked by MAIN.C 4051 | -5/Warlord | Identified Vortex Catalyst Activator 4055 | -5/Warlord | Found Prototype Energy Gun 4055 | -5/Warlord | Identified Vortex Shotgun 4058 | -5/Warlord | Found Vortex Shotgun 4098 | -5/Warlord | Spotted B-86 Titan 4138 | -5/Warlord | Opened side exit 4145 | -5/Warlord | Discovered new exit (range 9) 4146 | -5/Warlord | Identified exit to Proximity Caves 4147 | -5/Warlord | Entered Proximity Caves 4249 | -4/Proximity Caves | Build established: Hacker-Sprinter 4297 | -4/Proximity Caves | Entered Factory 4297 | -4/Factory | Evolved 2 slots: Utility x2 4299 | -4/Factory | Loaded intel: 4 garrison access locations 4330 | -4/Factory | Identified exit to DSF 4418 | -4/Factory | Loaded intel: 8 recycling unit locations 4501 | -4/Factory | Lost 10 parts (2p1n5u2w) 4504 | -4/Factory | Identified exit to Research 4513 | -4/Factory | Local machine network offline 4551 | -4/Factory | Entered Research 4551 | -3/Research | Evolved 2 slots: Utility x2 4580 | -3/Research | Lost 5 parts (3n2u) 4665 | -3/Research | Discovered new exit (range 5) 4678 | -3/Research | Entered Testing 4702 | -3/Testing | Found Prototype Protection 4702 | -3/Testing | Identified Centrium Heavy Armor Plating 4705 | -3/Testing | Central database locked down 4752 | -3/Testing | Found Prototype Device 4752 | -3/Testing | Identified 2N-1CE's Frost Array 4849 | -3/Testing | Found Prototype Energy Cannon 4849 | -3/Testing | Identified Null Cannon 4887 | -3/Testing | Discovered new exit (range 16) 4899 | -3/Testing | Identified exit to Research 4899 | -3/Testing | Entered Research 4899 | -2/Research | Evolved 2 slots: Propulsion x1, Utility x1 4915 | -2/Research | Loaded intel: 5 recycling unit locations 4968 | -2/Research | Discovered new exit (range 5) 4969 | -2/Research | Identified exit to Quarantine 4972 | -2/Research | Entered Quarantine 4976 | -2/Quarantine | Build established: Hacker-Ninja 5037 | -2/Quarantine | Found Alien Energy Cannon 5045 | -2/Quarantine | Found Alien Artifact 5064 | -2/Quarantine | Spotted Fortress 5087 | -2/Quarantine | Discovered new exit (range 5) 5087 | -2/Quarantine | Discovered new exit (range 6) 5088 | -2/Quarantine | Identified exit to Section 7 5089 | -2/Quarantine | Identified exit to Protoforge 5089 | -2/Quarantine | Entered Protoforge 5124 | -2/Protoforge | Superfortress began startup sequence 5204 | -2/Protoforge | Identified Core Cannon 5207 | -2/Protoforge | Identified Terrabomb 5207 | -2/Protoforge | Used Terrabomb 5207 | -2/Protoforge | Spotted AP7-3 5207 | -2/Protoforge | Spotted EXE-6 5207 | -2/Protoforge | Spotted EXE-6 5211 | -2/Protoforge | Crushed by falling debris 5212 | -2/Protoforge | Spotted Overlord 5213 | -2/Protoforge | Spotted SKR-2 5213 | -2/Protoforge | Spotted SKR-2 5213 | -2/Protoforge | Spotted SKR-2 5228 | -2/Protoforge | UFD initiated attack on Protoforge (Readiness: Adequate) 5228 | -2/Protoforge | Loaded intel: 3 recycling unit locations 5235 | -2/Protoforge | Spotted EXE-6 5235 | -2/Protoforge | Spotted EXE-6 5246 | -2/Protoforge | Lost 4 parts (1p1n2u) 5263 | -2/Protoforge | Spotted AP7-3 5264 | -2/Protoforge | Optimus greeted in Protoforge 5268 | -2/Protoforge | Found Prototype Processor 5268 | -2/Protoforge | Identified Exp. Armor Integrity Analyzer 5272 | -2/Protoforge | Found Prototype Processor 5272 | -2/Protoforge | Identified Exp. Core Analyzer 5282 | -2/Protoforge | Found Prototype Ballistic Gun 5282 | -2/Protoforge | Identified Cep. XC Strikerail 5297 | -2/Protoforge | Found Cep. XC Strikerail 5366 | -2/Protoforge | Lost 9 allies 5426 | -2/Protoforge | UFD reported confirmed Drillbomb installation 5442 | -2/Protoforge | Lost 5 allies 5568 | -2/Protoforge | Build established: Scavenger-Mutant 5604 | -2/Protoforge | Lost 5 allies 5666 | -2/Protoforge | Spotted Striker 5669 | -2/Protoforge | Spotted Striker 5690 | -2/Protoforge | Spotted Executioner 5702 | -2/Protoforge | Spotted Executioner 5703 | -2/Protoforge | Destroyed Executioner 5717 | -2/Protoforge | Lost 4 allies 5780 | -2/Protoforge | Lost 4 allies 5804 | -2/Protoforge | Found Exp. Core Analyzer 5833 | -2/Protoforge | Spotted Striker 5844 | -2/Protoforge | Spotted Executioner 5855 | -2/Protoforge | Destroyed Executioner 5859 | -2/Protoforge | Spotted Striker 5874 | -2/Protoforge | Spotted Executioner 5874 | -2/Protoforge | Spotted Striker 5878 | -2/Protoforge | System corruption reached 10% 5879 | -2/Protoforge | Found UFD Drillbomb 5892 | -2/Protoforge | Destroyed Striker 5897 | -2/Protoforge | Found UFD Drillbomb 5907 | -2/Protoforge | Lost 18 allies 5965 | -2/Protoforge | Installed UFD Drillbomb at designated target 5965 | -2/Protoforge | UFD reported confirmed Drillbomb installation 5970 | -2/Protoforge | Lost 6 parts (1p2n3u) 5991 | -2/Protoforge | Installed UFD Drillbomb at designated target 5991 | -2/Protoforge | UFD reported confirmed Drillbomb installation 5995 | -2/Protoforge | Found UFD Drillbomb 6043 | -2/Protoforge | UFD reported confirmed Drillbomb installation 6055 | -2/Protoforge | Installed UFD Drillbomb at designated target 6055 | -2/Protoforge | UFD reported confirmed Drillbomb installation 6058 | -2/Protoforge | Spotted Executioner 6067 | -2/Protoforge | Core integrity fell below 50% 6069 | -2/Protoforge | Spotted Hotshot 6071 | -2/Protoforge | Spotted Hotshot 6072 | -2/Protoforge | Spotted Hotshot 6072 | -2/Protoforge | Spotted Executioner 6074 | -2/Protoforge | Spotted Hotshot 6091 | -2/Protoforge | Lost 3 allies 6097 | -2/Protoforge | Spotted Striker 6153 | -2/Protoforge | Spotted Executioner 6153 | -2/Protoforge | Spotted Striker 6176 | -2/Protoforge | Spotted Hotshot 6177 | -2/Protoforge | Spotted Hotshot 6177 | -2/Protoforge | Spotted Hotshot 6178 | -2/Protoforge | Core integrity fell below 20% 6193 | -2/Protoforge | Spotted Striker 6194 | -2/Protoforge | Spotted Striker 6199 | -2/Protoforge | Spotted Executioner 6199 | -2/Protoforge | Spotted Striker 6200 | -2/Protoforge | Lost 9 allies 6202 | -2/Protoforge | Spotted Hotshot 6205 | -2/Protoforge | Spotted Hotshot 6205 | -2/Protoforge | Destroyed by H-88 Terminator with KE Penetrator Last Messages --------------- 06196_ Knocked back. 06200_ C-30 ARC bursts open, deploying its payload. 06200_ P-80 Master unfolds itself. 06201_ C-45 Heavy ARC bursts open, deploying its payload. 06201_ B-74 Champion unfolds itself. 06201_ P-80 Master unfolds itself. 06201_ S-43 Plague unfolds itself. 06201_ I-47 Archangel unfolds itself. 06202_ C-45 Heavy ARC bursts open, deploying its payload. 06202_ G-73 Enforcer unfolds itself. 06202_ H-88 Terminator unfolds itself. 06202_ L-61 Swordsman unfolds itself. 06202_ G-73 Enforcer unfolds itself. 06202_ M-36 Artificer unfolds itself. 06202_ Slug penetrates Wall. 06202_ Slug penetrates P-80 Master. 06203_ Rnf. Antimatter Reactor destroyed. Map ----- +----------------------------------------------------+ | ????????????????????????????????????????????## # | | ????????????????????????????????????????????## # | | ????????????????????????????????????????????## # | | ????????????????????????????????????????????## # | | ????????????????????????????????????????????## # | | ????????????????????????????????????????????## # | | ??????????????????????#####?????????????????## # | | ??????????????#############?????????????????## # | | ??????????????##########?##?????#########???## # | | ??????????????##?????????##?????############## # | | ??????????????##?????????##?????## ##"#### # | | ??????????????##?????????##?????## | | ??????????????##?????????##?????## " | | ################?????????##?????## | | ################?????????##?????## % ########+## | | #?????????#????#?????????##?????#### ######?? | | #?????????#????#?????????######?###" # # | | #?????????#????###+############???## + # | | #???????????? ##???## # # | | #?????????#??? ##???## # # | | #?????????#???"" "##???## #? # """" | | #?????????#???"" """" ""##???## #? # """" | | #?????????#???"" """" ""##???## "?? # """" | | ###########? """ """" ""##???##%#?? # """" | | #?????????# """ """" ""##???## #??? ######## | | #?????????+ """ h @ T"##???## ############# | | #?????????# """ """" h ""####### ############# | | #?????????# """"plm""#####"#+#####???????? | | #?????????# """" ""# ###???????? | | #?????????#??# ### """"gbg""# ###???????? | | #?????????#??#?### h iss"# ###???????? | | #?????????####?### """" K g# ###???????? | | ###?????######?### """" + ###???????? | | ###?????######?#"" """" p # ###???????? | | ?##?????##??##?#"" """" p # ###???????? | | ?#########??##?#"" % # ########### | | ?#########??##?#T """" ##################### | | ????????????##?#"" """" #???????????????#???? | | ????????????##?#"" """" #???????????????????? | | ????????????##?#"" """" #???????????????#???? | | ????????????##?### g#???????????????#???# | | ??????########?### ?? g???????????????#???# | | ??????########?###?? #???????????????#???# | | ??????##?????????#??? #### ###???????????????#???# | | ??????##?????????#?? #### ###???????????????#???# | | ########?????????#?? #### ###???????????????#???# | | ########???????????? ?####+###################???# | | ##???????????????#?? ?#??????################????? | | ##?#####?????????#????#??????################????? | | ##?#####?????????#????#??????#???????????????????? | +----------------------------------------------------+ Best States ------------- Heat Dissipation 149 Coolant Potential 120 Energy Generation 55 Energy Capacity 700 Matter Stores 300 Matter Capacity 300 Sight Range 23 Robot Scan Range 18 Terrain Scan Range 20 Terrain Scan Density 10 ECM Strength 2 Jamming Range 16 Cloak Strength 2 Power Amplification 20 Armor Coverage 825 Resistance: TH 50 Evasion (%) 64 Targeting Accuracy 20 Melee Accuracy 6 Target Analysis 12 Core Analysis 12 Armor Integrity Analysis 50 Recoil Reduction 2 Offensive Hacking 40 Defensive Hacking 31 Item Schematics ----------------- None Robot Schematics ------------------ None Fabricated ------------ Nothing Repaired ---------- Nothing Studied --------- VTOL Module | -5/Factory | Hacked Field Propulsion Drive | -5/Factory | Hacked Field Propulsion Array | -3/Research | Hacked Impulse Thruster Array | -3/Testing | Hacked Particle Reactor | -2/Quarantine | Hacked Nuclear Pulse Array | -2/Protoforge | Hacked Alien Tech Used ----------------- Core Cannon Terrabomb Achievements -------------- Fine I'll Do It Myself Plot Armor Strength In Numbers Super-what Now? We Are One Challenges ------------ None Game ------ Seed SmallSuspensionBox Manual? 0 Play Time 02:33:38 Cumulative 132.5 hours Start 2026.07.11 @ 15:22:59 End 2026.07.11 @ 17:59:33 Sessions 1 Manual Loads 0 Difficulty Rogue Special Mode None Game No. 120 Rogue 119 Adventurer 0 Explorer 1 Win Type - Total 7 Types 4/0/1/1/0/0/0/1/0/0 Lore% 74 Gallery% 63 Achievement% 43 Wizard Run 0 Options --------- Layout 1 ASCII 0 Keyboard 0 Movement Arrows Keybinds 0 Fullscreen 1 Font 24/Smallcaps Map View 50x35 Zoom Use 0% Tactical HUD 1 Map Filters NONE Filters NONE Steam 1 RUN: f300cc23-bb22-4a20-b678-18b67b3aa336